[Event "Titled Tuesday Blitz January 31 Early 2023"]
[White "Dobrikov, Marco"]
[Black "Osiecki, Stanislaw"]
[WhiteFideId "12950378"]
[BlackFideId "1102990"]
[WhiteElo "2269"]
[BlackElo "2055"]
[Result "0-1"]
[Round "01"]
[TimeControl "180+2"]
[Date "2023.01.31"]
[WhiteClock "0:00:19"]
[BlackClock "0:00:02"]

1. e4 {[%clk 0:02:58]}  e6 {[%clk 0:03:00]} 2. d4 {[%clk 0:02:58]}  d5 {[%clk 0:02:55]} 3. f3 {[%clk 0:02:58]}  dxe4 {[%clk 0:02:54]} 4. fxe4 {[%clk 0:02:53]}  Qh4+ {[%clk 0:02:54]} 5. g3 {[%clk 0:02:54]}  Qxe4+ {[%clk 0:02:53]} 6. Qe2 {[%clk 0:02:55]}  Qxh1 {[%clk 0:02:53]} 7. Nf3 {[%clk 0:02:56]}  Nc6 {[%clk 0:02:46]} 8. c3 {[%clk 0:02:54]}  e5 {[%clk 0:02:44]} 9. d5 {[%clk 0:02:42]}  Bg4 {[%clk 0:02:43]} 10. dxc6 {[%clk 0:02:31]}  Qxf3 {[%clk 0:02:36]} 11. cxb7 {[%clk 0:02:27]}  Rb8 {[%clk 0:02:16]} 12. Qxe5+ {[%clk 0:02:27]}  Ne7 {[%clk 0:02:10]} 13. Bb5+ {[%clk 0:02:20]}  Kd8 {[%clk 0:02:01]} 14. Bf4 {[%clk 0:02:12]}  Qd1+ {[%clk 0:00:59]} 15. Kf2 {[%clk 0:02:11]}  Qf3+ {[%clk 0:00:47]} 16. Kg1 {[%clk 0:02:07]}  Qd1+ {[%clk 0:00:44]} 17. Kf2 {[%clk 0:02:00]}  Qf3+ {[%clk 0:00:44]} 18. Kg1 {[%clk 0:01:58]}  Qd1+ {[%clk 0:00:44]} 19. Bf1 {[%clk 0:01:36]}  Rxb7 {[%clk 0:00:40]} 20. Kf2 {[%clk 0:01:21]}  Qc2+ {[%clk 0:00:34]} 21. Nd2 {[%clk 0:01:21]}  f6 {[%clk 0:00:27]} 22. Qd4+ {[%clk 0:01:19]}  Ke8 {[%clk 0:00:27]} 23. Bg2 {[%clk 0:01:19]}  Rxb2 {[%clk 0:00:22]} 24. Re1 {[%clk 0:01:19]}  Rb8 {[%clk 0:00:14]} 25. Bc6+ {[%clk 0:01:19]}  Kf7 {[%clk 0:00:14]} 26. Bd5+ {[%clk 0:01:02]}  Nxd5 {[%clk 0:00:13]} 27. Qxd5+ {[%clk 0:01:02]}  Kg6 {[%clk 0:00:12]} 28. h4 {[%clk 0:00:31]}  Bd6 {[%clk 0:00:11]} 29. Bxd6 {[%clk 0:00:28]}  cxd6 {[%clk 0:00:10]} 30. Re4 {[%clk 0:00:29]}  Bf5 {[%clk 0:00:07]} 31. h5+ {[%clk 0:00:26]}  Kg5 {[%clk 0:00:04]} 32. Kg1 {[%clk 0:00:13]}  Rb2 {[%clk 0:00:01]} 33. Nf3+ {[%clk 0:00:13]}  Kh6 {[%clk 0:00:01]} 34. Qd2+ {[%clk 0:00:08]}  Qxd2 {[%clk 0:00:01]} 35. Nxd2 {[%clk 0:00:09]}  Rxd2 {[%clk 0:00:01]} 36. Rf4 {[%clk 0:00:10]}  Rxa2 {[%clk 0:00:01]} 37. Rd4 {[%clk 0:00:10]}  Ra1+ {[%clk 0:00:02]} 38. Kf2 {[%clk 0:00:11]}  Bb1 {[%clk 0:00:01]} 39. Ke3 {[%clk 0:00:12]}  Ra2 {[%clk 0:00:01]} 40. g4 {[%clk 0:00:13]}  Ra3 {[%clk 0:00:01]} 41. g5+ {[%clk 0:00:13]}  fxg5 {[%clk 0:00:01]} 42. Rd5 {[%clk 0:00:14]}  Kxh5 {[%clk 0:00:02]} 43. Rxd6 {[%clk 0:00:15]}  Kh4 {[%clk 0:00:02]} 44. Rd4+ {[%clk 0:00:16]}  Kg3 {[%clk 0:00:01]} 45. Ke2 {[%clk 0:00:16]}  g4 {[%clk 0:00:02]} 46. Rd5 {[%clk 0:00:16]}  Ra2+ {[%clk 0:00:02]} 47. Ke3 {[%clk 0:00:17]}  Bg6 {[%clk 0:00:02]} 48. Re5 {[%clk 0:00:17]}  Kh3 {[%clk 0:00:02]} 49. Re6 {[%clk 0:00:17]}  g3 {[%clk 0:00:03]} 50. Re7 {[%clk 0:00:18]}  Kg2 {[%clk 0:00:03]} 51. Rxg7 {[%clk 0:00:19]}  Kf1 {[%clk 0:00:02]} 52. Rf7+ {[%clk 0:00:19]}  Kg1 {[%clk 0:00:02]} 0-1


[Site "https://www.chess.com"]

[Event "Titled Tuesday Blitz January 31 Early 2023"]
[White "Dilanyan, Grigor"]
[Black "Levine, David"]
[WhiteFideId "13303570"]
[BlackFideId "2011611"]
[WhiteElo "2174"]
[BlackElo "2040"]
[Result "1-0"]
[Round "01"]
[TimeControl "180+2"]
[Date "2023.01.31"]
[WhiteClock "0:01:38"]
[BlackClock "0:00:01"]

1. e4 {[%clk 0:03:00]}  e5 {[%clk 0:02:59]} 2. Nf3 {[%clk 0:02:58]}  Nc6 {[%clk 0:02:58]} 3. Bb5 {[%clk 0:02:54]}  a6 {[%clk 0:02:58]} 4. Ba4 {[%clk 0:02:43]}  Nf6 {[%clk 0:02:57]} 5. O-O {[%clk 0:02:42]}  Be7 {[%clk 0:02:57]} 6. d4 {[%clk 0:02:41]}  exd4 {[%clk 0:02:49]} 7. e5 {[%clk 0:02:41]}  Nd5 {[%clk 0:02:45]} 8. Bb3 {[%clk 0:02:41]}  Nb6 {[%clk 0:02:38]} 9. Nxd4 {[%clk 0:02:41]}  Nxd4 {[%clk 0:02:35]} 10. Qxd4 {[%clk 0:02:42]}  O-O {[%clk 0:02:33]} 11. Nc3 {[%clk 0:02:42]}  d6 {[%clk 0:02:28]} 12. Bf4 {[%clk 0:02:21]}  Be6 {[%clk 0:02:13]} 13. Bxe6 {[%clk 0:02:17]}  fxe6 {[%clk 0:02:12]} 14. Rfe1 {[%clk 0:02:12]}  d5 {[%clk 0:02:08]} 15. Bg3 {[%clk 0:02:06]}  c5 {[%clk 0:01:57]} 16. Qg4 {[%clk 0:02:04]}  Qd7 {[%clk 0:01:53]} 17. Rad1 {[%clk 0:02:04]}  Qc6 {[%clk 0:01:49]} 18. Ne2 {[%clk 0:02:03]}  Nd7 {[%clk 0:01:20]} 19. Nf4 {[%clk 0:02:02]}  Rf5 {[%clk 0:01:19]} 20. Nxd5 {[%clk 0:02:00]}  Bf8 {[%clk 0:01:15]} 21. Ne3 {[%clk 0:01:58]}  Rf7 {[%clk 0:01:11]} 22. Rd6 {[%clk 0:01:57]}  Bxd6 {[%clk 0:00:53]} 23. exd6 {[%clk 0:01:58]}  Re8 {[%clk 0:00:51]} 24. h4 {[%clk 0:01:57]}  Nf6 {[%clk 0:00:47]} 25. Qd1 {[%clk 0:01:51]}  e5 {[%clk 0:00:43]} 26. Nc4 {[%clk 0:01:50]}  Ne4 {[%clk 0:00:29]} 27. Nxe5 {[%clk 0:01:47]}  Rxe5 {[%clk 0:00:27]} 28. Bxe5 {[%clk 0:01:47]}  Nxf2 {[%clk 0:00:27]} 29. d7 {[%clk 0:01:41]}  Rxd7 {[%clk 0:00:21]} 30. Qf3 {[%clk 0:01:42]}  Qxf3 {[%clk 0:00:10]} 31. gxf3 {[%clk 0:01:43]}  Nd1 {[%clk 0:00:01]} 32. Kf1 {[%clk 0:01:38]} 1-0


[Site "https://www.chess.com"]

[Event "Titled Tuesday Blitz January 31 Early 2023"]
[White "Mendez Fortes, Eduardo Jesus"]
[Black "kiwibobo"]
[WhiteFideId "3502376"]
[WhiteElo "2250"]
[BlackElo "2040"]
[Result "0-1"]
[Round "01"]
[TimeControl "180+2"]
[Date "2023.01.31"]
[WhiteClock "0:00:31"]
[BlackClock "0:00:24"]

1. e4 {[%clk 0:02:47]}  e5 {[%clk 0:02:58]} 2. Nf3 {[%clk 0:02:45]}  Nc6 {[%clk 0:02:58]} 3. Bb5 {[%clk 0:02:45]}  a6 {[%clk 0:02:58]} 4. Ba4 {[%clk 0:02:45]}  Nf6 {[%clk 0:02:58]} 5. O-O {[%clk 0:02:46]}  b5 {[%clk 0:02:58]} 6. Bb3 {[%clk 0:02:44]}  Bc5 {[%clk 0:02:58]} 7. Re1 {[%clk 0:02:45]}  O-O {[%clk 0:02:58]} 8. a4 {[%clk 0:02:43]}  Rb8 {[%clk 0:02:57]} 9. c3 {[%clk 0:02:43]}  d6 {[%clk 0:02:56]} 10. d4 {[%clk 0:02:43]}  Bb6 {[%clk 0:02:57]} 11. h3 {[%clk 0:02:42]}  h6 {[%clk 0:02:48]} 12. axb5 {[%clk 0:02:41]}  axb5 {[%clk 0:02:47]} 13. Na3 {[%clk 0:02:42]}  Re8 {[%clk 0:02:39]} 14. Nxb5 {[%clk 0:02:39]}  exd4 {[%clk 0:02:37]} 15. Nbxd4 {[%clk 0:02:38]}  Nxd4 {[%clk 0:02:34]} 16. cxd4 {[%clk 0:02:39]}  Rxe4 {[%clk 0:02:25]} 17. Bc2 {[%clk 0:02:33]}  Rxe1+ {[%clk 0:02:18]} 18. Qxe1 {[%clk 0:02:34]}  Bb7 {[%clk 0:02:04]} 19. Qe3 {[%clk 0:02:32]}  Qd7 {[%clk 0:01:59]} 20. Qd3 {[%clk 0:02:31]}  Be4 {[%clk 0:01:58]} 21. Qe2 {[%clk 0:02:28]}  Bxc2 {[%clk 0:01:47]} 22. Qxc2 {[%clk 0:02:28]}  Qe6 {[%clk 0:01:41]} 23. Bd2 {[%clk 0:02:25]}  Qd5 {[%clk 0:01:38]} 24. Bc3 {[%clk 0:02:24]}  Ne4 {[%clk 0:01:38]} 25. Re1 {[%clk 0:02:17]}  Nxc3 {[%clk 0:01:34]} 26. bxc3 {[%clk 0:02:15]}  Ba5 {[%clk 0:01:31]} 27. Re7 {[%clk 0:02:11]}  Kf8 {[%clk 0:01:21]} 28. Re3 {[%clk 0:02:05]}  Qb3 {[%clk 0:01:17]} 29. Qh7 {[%clk 0:02:04]}  Qb1+ {[%clk 0:01:16]} 30. Qxb1 {[%clk 0:02:03]}  Rxb1+ {[%clk 0:01:17]} 31. Kh2 {[%clk 0:02:03]}  Rc1 {[%clk 0:01:15]} 32. Re2 {[%clk 0:02:00]}  Rxc3 {[%clk 0:01:11]} 33. Kg3 {[%clk 0:02:00]}  Bb6 {[%clk 0:01:10]} 34. Rd2 {[%clk 0:01:59]}  Ke7 {[%clk 0:01:07]} 35. Kf4 {[%clk 0:01:58]}  Kf6 {[%clk 0:01:03]} 36. Ke4 {[%clk 0:01:56]}  Ra3 {[%clk 0:01:01]} 37. Ne1 {[%clk 0:01:53]}  Ra4 {[%clk 0:00:59]} 38. Nc2 {[%clk 0:01:50]}  c5 {[%clk 0:00:58]} 39. Kd5 {[%clk 0:01:47]}  cxd4 {[%clk 0:00:55]} 40. Ne1 {[%clk 0:01:44]}  Bc5 {[%clk 0:00:53]} 41. Nd3 {[%clk 0:01:43]}  Ra5 {[%clk 0:00:52]} 42. Ke4 {[%clk 0:01:40]}  Ke6 {[%clk 0:00:51]} 43. Nf4+ {[%clk 0:01:39]}  Kd7 {[%clk 0:00:51]} 44. Rb2 {[%clk 0:01:37]}  g5 {[%clk 0:00:50]} 45. Nd3 {[%clk 0:01:32]}  Ke6 {[%clk 0:00:49]} 46. Kf3 {[%clk 0:01:20]}  Ra3 {[%clk 0:00:46]} 47. Ke2 {[%clk 0:01:19]}  Kd5 {[%clk 0:00:45]} 48. Rc2 {[%clk 0:01:17]}  Ke4 {[%clk 0:00:42]} 49. f3+ {[%clk 0:01:16]}  Kd5 {[%clk 0:00:42]} 50. h4 {[%clk 0:01:12]}  Rc3 {[%clk 0:00:43]} 51. Rd2 {[%clk 0:01:10]}  f6 {[%clk 0:00:38]} 52. h5 {[%clk 0:01:10]}  Ke6 {[%clk 0:00:35]} 53. Ra2 {[%clk 0:01:01]}  Kd5 {[%clk 0:00:34]} 54. Rb2 {[%clk 0:01:00]}  Kc4 {[%clk 0:00:33]} 55. Ne1 {[%clk 0:00:56]}  d3+ {[%clk 0:00:32]} 56. Kd2 {[%clk 0:00:56]}  Bb4 {[%clk 0:00:30]} 57. Kd1 {[%clk 0:00:51]}  Ra3 {[%clk 0:00:27]} 58. Rb1 {[%clk 0:00:46]}  Bxe1 {[%clk 0:00:26]} 59. Kxe1 {[%clk 0:00:47]}  Ra2 {[%clk 0:00:27]} 60. Rb7 {[%clk 0:00:41]}  Rxg2 {[%clk 0:00:27]} 61. Rh7 {[%clk 0:00:41]}  Kc3 {[%clk 0:00:26]} 62. Rc7+ {[%clk 0:00:40]}  Kd4 {[%clk 0:00:25]} 63. Rd7 {[%clk 0:00:36]}  Ke3 {[%clk 0:00:23]} 64. Kf1 {[%clk 0:00:36]}  Rf2+ {[%clk 0:00:23]} 65. Kg1 {[%clk 0:00:32]}  Rxf3 {[%clk 0:00:23]} 66. Rxd6 {[%clk 0:00:32]}  d2 {[%clk 0:00:24]} 67. Kg2 {[%clk 0:00:31]}  Rf4 {[%clk 0:00:23]} 68. Re6+ {[%clk 0:00:29]}  Kd3 {[%clk 0:00:23]} 69. Rd6+ {[%clk 0:00:30]}  Kc2 {[%clk 0:00:24]} 70. Rxf6 {[%clk 0:00:31]}  Rxf6 {[%clk 0:00:24]} 0-1


[Site "https://www.chess.com"]

[Event "Titled Tuesday Blitz January 31 Early 2023"]
[White "Berezin, Viktor"]
[Black "Necula, Iulian"]
[WhiteFideId "14107872"]
[BlackFideId "1232380"]
[WhiteElo "2307"]
[BlackElo "1851"]
[Result "1-0"]
[Round "01"]
[TimeControl "180+2"]
[Date "2023.01.31"]
[WhiteClock "0:01:35"]
[BlackClock "0:00:05"]

1. d4 {[%clk 0:02:59]}  f5 {[%clk 0:02:58]} 2. g3 {[%clk 0:02:59]}  Nf6 {[%clk 0:02:58]} 3. Bg2 {[%clk 0:02:58]}  g6 {[%clk 0:02:58]} 4. Nf3 {[%clk 0:02:57]}  Bg7 {[%clk 0:02:59]} 5. O-O {[%clk 0:02:56]}  O-O {[%clk 0:02:59]} 6. c4 {[%clk 0:02:55]}  d6 {[%clk 0:02:59]} 7. Nc3 {[%clk 0:02:54]}  Qe8 {[%clk 0:03:00]} 8. d5 {[%clk 0:02:52]}  Na6 {[%clk 0:03:00]} 9. Nd4 {[%clk 0:02:49]}  Bd7 {[%clk 0:02:36]} 10. Rb1 {[%clk 0:02:47]}  c5 {[%clk 0:02:18]} 11. Ne6 {[%clk 0:02:47]}  Bxe6 {[%clk 0:02:02]} 12. dxe6 {[%clk 0:02:48]}  Qc8 {[%clk 0:02:00]} 13. Qb3 {[%clk 0:02:39]}  Nb4 {[%clk 0:01:22]} 14. a3 {[%clk 0:02:38]}  Nc6 {[%clk 0:01:22]} 15. Nd5 {[%clk 0:02:36]}  Nxd5 {[%clk 0:01:21]} 16. cxd5 {[%clk 0:02:36]}  Nd4 {[%clk 0:01:19]} 17. Qd1 {[%clk 0:02:36]}  Rb8 {[%clk 0:00:57]} 18. Bg5 {[%clk 0:02:34]}  Re8 {[%clk 0:00:55]} 19. b4 {[%clk 0:02:34]}  b6 {[%clk 0:00:53]} 20. a4 {[%clk 0:02:25]}  a5 {[%clk 0:00:51]} 21. bxc5 {[%clk 0:02:20]}  bxc5 {[%clk 0:00:46]} 22. Rxb8 {[%clk 0:02:17]}  Qxb8 {[%clk 0:00:47]} 23. e3 {[%clk 0:02:17]}  Nb3 {[%clk 0:00:45]} 24. e4 {[%clk 0:02:14]}  fxe4 {[%clk 0:00:40]} 25. Bxe4 {[%clk 0:02:11]}  c4 {[%clk 0:00:40]} 26. h4 {[%clk 0:02:04]}  Nc5 {[%clk 0:00:21]} 27. Bc2 {[%clk 0:02:04]}  Qb2 {[%clk 0:00:16]} 28. h5 {[%clk 0:02:03]}  gxh5 {[%clk 0:00:15]} 29. Bxh7+ {[%clk 0:02:01]}  Kxh7 {[%clk 0:00:14]} 30. Qxh5+ {[%clk 0:02:01]}  Kg8 {[%clk 0:00:11]} 31. Qxe8+ {[%clk 0:01:59]}  Bf8 {[%clk 0:00:12]} 32. Qf7+ {[%clk 0:01:56]}  Kh8 {[%clk 0:00:09]} 33. Qxf8+ {[%clk 0:01:56]}  Kh7 {[%clk 0:00:10]} 34. Qxe7+ {[%clk 0:01:56]}  Kg6 {[%clk 0:00:10]} 35. Be3 {[%clk 0:01:49]}  Nd3 {[%clk 0:00:08]} 36. Qg5+ {[%clk 0:01:47]}  Kh7 {[%clk 0:00:08]} 37. Qh6+ {[%clk 0:01:44]}  Kg8 {[%clk 0:00:08]} 38. e7 {[%clk 0:01:43]}  Kf7 {[%clk 0:00:08]} 39. Qe6+ {[%clk 0:01:42]}  Ke8 {[%clk 0:00:08]} 40. Bg5 {[%clk 0:01:36]}  Qb8 {[%clk 0:00:06]} 41. Qg8+ {[%clk 0:01:35]}  Kd7 {[%clk 0:00:06]} 42. Qxb8 {[%clk 0:01:35]}  Nxf2 {[%clk 0:00:05]} 43. e8=Q# {[%clk 0:01:35]} 1-0


[Site "https://www.chess.com"]

[Event "Titled Tuesday Blitz January 31 Early 2023"]
[White "Kubicka, Anna"]
[Black "Mohammadian, Mohammad"]
[WhiteFideId "1152254"]
[BlackFideId "12566055"]
[WhiteElo "2240"]
[BlackElo "1398"]
[Result "1-0"]
[Round "01"]
[TimeControl "180+2"]
[Date "2023.01.31"]
[WhiteClock "0:02:25"]
[BlackClock "0:01:39"]

1. e4 {[%clk 0:03:00]}  e5 {[%clk 0:02:58]} 2. Nf3 {[%clk 0:03:01]}  Nc6 {[%clk 0:02:57]} 3. Bc4 {[%clk 0:03:01]}  Bc5 {[%clk 0:02:56]} 4. O-O {[%clk 0:03:01]}  Nf6 {[%clk 0:02:54]} 5. d3 {[%clk 0:03:00]}  h6 {[%clk 0:02:53]} 6. c3 {[%clk 0:03:00]}  d6 {[%clk 0:02:52]} 7. a4 {[%clk 0:02:58]}  a5 {[%clk 0:02:51]} 8. Nbd2 {[%clk 0:02:55]}  Bg4 {[%clk 0:02:50]} 9. h3 {[%clk 0:02:53]}  Bh5 {[%clk 0:02:48]} 10. Re1 {[%clk 0:02:52]}  O-O {[%clk 0:02:44]} 11. Nf1 {[%clk 0:02:52]}  Qc8 {[%clk 0:02:39]} 12. Ng3 {[%clk 0:02:49]}  Bg6 {[%clk 0:02:37]} 13. Be3 {[%clk 0:02:49]}  Re8 {[%clk 0:02:21]} 14. Nh4 {[%clk 0:02:40]}  Bh7 {[%clk 0:02:19]} 15. Qf3 {[%clk 0:02:40]}  Bxe3 {[%clk 0:02:12]} 16. fxe3 {[%clk 0:02:41]}  Ne7 {[%clk 0:02:06]} 17. Nh5 {[%clk 0:02:30]}  Ng4 {[%clk 0:01:39]} 18. Qxf7+ {[%clk 0:02:25]} 1-0


[Site "https://www.chess.com"]

[Event "Titled Tuesday Blitz January 31 Early 2023"]
[White "Ristic, Nebojsa B"]
[Black "Noshin, Anjum"]
[WhiteFideId "935468"]
[BlackFideId "10218564"]
[WhiteElo "2236"]
[BlackElo "1946"]
[Result "1-0"]
[Round "01"]
[TimeControl "180+2"]
[Date "2023.01.31"]
[WhiteClock "0:01:06"]
[BlackClock "0:00:02"]

1. d4 {[%clk 0:02:59]}  d5 {[%clk 0:02:59]} 2. c4 {[%clk 0:02:58]}  dxc4 {[%clk 0:02:57]} 3. Nf3 {[%clk 0:02:57]}  Nf6 {[%clk 0:02:55]} 4. e3 {[%clk 0:02:57]}  e6 {[%clk 0:02:53]} 5. Bxc4 {[%clk 0:02:55]}  c5 {[%clk 0:02:54]} 6. O-O {[%clk 0:02:55]}  a6 {[%clk 0:02:52]} 7. b3 {[%clk 0:02:54]}  b5 {[%clk 0:02:48]} 8. Bd3 {[%clk 0:02:54]}  Bb7 {[%clk 0:02:49]} 9. Bb2 {[%clk 0:02:54]}  Nc6 {[%clk 0:02:45]} 10. Nbd2 {[%clk 0:02:53]}  Be7 {[%clk 0:02:37]} 11. Qe2 {[%clk 0:02:53]}  cxd4 {[%clk 0:02:36]} 12. Nxd4 {[%clk 0:02:46]}  O-O {[%clk 0:02:30]} 13. Rfd1 {[%clk 0:02:44]}  Nxd4 {[%clk 0:02:27]} 14. Bxd4 {[%clk 0:02:45]}  Nd5 {[%clk 0:01:52]} 15. Ne4 {[%clk 0:02:37]}  f5 {[%clk 0:01:31]} 16. Ng3 {[%clk 0:02:23]}  Bf6 {[%clk 0:00:57]} 17. Qb2 {[%clk 0:02:00]}  Nb4 {[%clk 0:00:25]} 18. Bf1 {[%clk 0:01:39]}  Bxd4 {[%clk 0:00:18]} 19. Rxd4 {[%clk 0:01:37]}  Qf6 {[%clk 0:00:18]} 20. Rad1 {[%clk 0:01:25]}  Nc6 {[%clk 0:00:13]} 21. R4d2 {[%clk 0:01:23]}  Qxb2 {[%clk 0:00:11]} 22. Rxb2 {[%clk 0:01:24]}  Rad8 {[%clk 0:00:11]} 23. Rc1 {[%clk 0:01:20]}  Nb4 {[%clk 0:00:04]} 24. Rc7 {[%clk 0:01:11]}  Bd5 {[%clk 0:00:02]} 25. a3 {[%clk 0:01:06]} 1-0


[Site "https://www.chess.com"]

[Event "Titled Tuesday Blitz January 31 Early 2023"]
[White "Nakamura, Hikaru"]
[Black "Csonka, Balazs"]
[WhiteFideId "2016192"]
[BlackFideId "742910"]
[WhiteElo "2775"]
[BlackElo "2496"]
[Result "1-0"]
[Round "02"]
[TimeControl "180+2"]
[Date "2023.01.31"]
[WhiteClock "0:00:59"]
[BlackClock "0:00:02"]

1. Nf3 {[%clk 0:03:00]}  d5 {[%clk 0:02:57]} 2. g3 {[%clk 0:02:58]}  g6 {[%clk 0:02:57]} 3. c3 {[%clk 0:02:56]}  Bg7 {[%clk 0:02:56]} 4. d4 {[%clk 0:02:55]}  Nf6 {[%clk 0:02:54]} 5. Bg2 {[%clk 0:02:55]}  O-O {[%clk 0:02:54]} 6. a4 {[%clk 0:02:55]}  a5 {[%clk 0:02:51]} 7. O-O {[%clk 0:02:55]}  c6 {[%clk 0:02:44]} 8. Nbd2 {[%clk 0:02:56]}  Nbd7 {[%clk 0:02:36]} 9. Re1 {[%clk 0:02:54]}  Re8 {[%clk 0:02:32]} 10. e4 {[%clk 0:02:38]}  Nxe4 {[%clk 0:02:32]} 11. Nxe4 {[%clk 0:02:39]}  dxe4 {[%clk 0:02:33]} 12. Rxe4 {[%clk 0:02:39]}  Nf6 {[%clk 0:02:33]} 13. Re1 {[%clk 0:02:38]}  Bg4 {[%clk 0:02:24]} 14. h3 {[%clk 0:02:35]}  Bxf3 {[%clk 0:02:23]} 15. Bxf3 {[%clk 0:02:36]}  Qb6 {[%clk 0:02:16]} 16. Qc2 {[%clk 0:02:35]}  e6 {[%clk 0:02:10]} 17. Bg5 {[%clk 0:02:32]}  Rad8 {[%clk 0:02:03]} 18. Rab1 {[%clk 0:02:25]}  Rd7 {[%clk 0:02:03]} 19. Re2 {[%clk 0:02:17]}  Nd5 {[%clk 0:01:58]} 20. Rbe1 {[%clk 0:02:17]}  Qc7 {[%clk 0:01:54]} 21. Kg2 {[%clk 0:02:17]}  Qd6 {[%clk 0:01:48]} 22. Qb3 {[%clk 0:02:16]}  Qc7 {[%clk 0:01:46]} 23. h4 {[%clk 0:02:16]}  h6 {[%clk 0:01:44]} 24. Bc1 {[%clk 0:02:16]}  h5 {[%clk 0:01:44]} 25. Bg5 {[%clk 0:02:11]}  Bf8 {[%clk 0:01:43]} 26. c4 {[%clk 0:02:04]}  Nb4 {[%clk 0:01:27]} 27. d5 {[%clk 0:02:05]}  e5 {[%clk 0:01:07]} 28. Bd2 {[%clk 0:01:45]}  cxd5 {[%clk 0:01:02]} 29. cxd5 {[%clk 0:01:45]}  Qd6 {[%clk 0:00:58]} 30. Bc3 {[%clk 0:01:36]}  Bg7 {[%clk 0:00:58]} 31. Rd2 {[%clk 0:01:32]}  Rde7 {[%clk 0:00:54]} 32. Bxb4 {[%clk 0:01:24]}  axb4 {[%clk 0:00:51]} 33. Re4 {[%clk 0:01:24]}  f5 {[%clk 0:00:52]} 34. Rxb4 {[%clk 0:01:24]}  e4 {[%clk 0:00:49]} 35. Bd1 {[%clk 0:01:06]}  e3 {[%clk 0:00:20]} 36. Rb6 {[%clk 0:01:05]}  Qe5 {[%clk 0:00:11]} 37. d6+ {[%clk 0:01:03]}  Kh7 {[%clk 0:00:12]} 38. dxe7 {[%clk 0:00:59]}  exd2 {[%clk 0:00:12]} 39. Qf7 {[%clk 0:00:59]}  Qe4+ {[%clk 0:00:02]} 40. Kh2 {[%clk 0:00:59]}  Qd4 {[%clk 0:00:02]} 41. Qxg6+ {[%clk 0:00:59]}  Kh8 {[%clk 0:00:02]} 42. Qxe8+ {[%clk 0:00:59]} 1-0


[Site "https://www.chess.com"]

[Event "Titled Tuesday Blitz January 31 Early 2023"]
[White "So, Wesley"]
[Black "Tan, Zhongyi"]
[WhiteFideId "5202213"]
[BlackFideId "8603642"]
[WhiteElo "2760"]
[BlackElo "2517"]
[Result "1-0"]
[Round "02"]
[TimeControl "180+2"]
[Date "2023.01.31"]
[WhiteClock "0:00:32"]
[BlackClock "0:00:01"]

1. e4 {[%clk 0:02:57]}  c5 {[%clk 0:02:58]} 2. Nf3 {[%clk 0:02:55]}  d6 {[%clk 0:02:59]} 3. Bb5+ {[%clk 0:02:53]}  Bd7 {[%clk 0:02:58]} 4. Bxd7+ {[%clk 0:02:53]}  Qxd7 {[%clk 0:02:59]} 5. c4 {[%clk 0:02:53]}  e5 {[%clk 0:02:57]} 6. Nc3 {[%clk 0:02:53]}  Nc6 {[%clk 0:02:57]} 7. d3 {[%clk 0:02:53]}  Be7 {[%clk 0:02:58]} 8. a3 {[%clk 0:02:51]}  Bd8 {[%clk 0:02:58]} 9. O-O {[%clk 0:02:50]}  Nge7 {[%clk 0:02:58]} 10. Rb1 {[%clk 0:02:48]}  O-O {[%clk 0:02:58]} 11. b4 {[%clk 0:02:49]}  f5 {[%clk 0:02:57]} 12. exf5 {[%clk 0:02:42]}  Nxf5 {[%clk 0:02:51]} 13. Re1 {[%clk 0:02:42]}  Bc7 {[%clk 0:02:28]} 14. Bd2 {[%clk 0:02:24]}  b6 {[%clk 0:02:26]} 15. Ne4 {[%clk 0:02:16]}  h6 {[%clk 0:02:20]} 16. a4 {[%clk 0:02:11]}  Rf7 {[%clk 0:02:18]} 17. b5 {[%clk 0:02:08]}  Nce7 {[%clk 0:02:12]} 18. a5 {[%clk 0:02:08]}  Raf8 {[%clk 0:02:12]} 19. axb6 {[%clk 0:02:07]}  axb6 {[%clk 0:02:11]} 20. Bc3 {[%clk 0:02:01]}  Ng6 {[%clk 0:02:00]} 21. Qc2 {[%clk 0:01:52]}  Nf4 {[%clk 0:01:54]} 22. Ned2 {[%clk 0:01:46]}  Nd4 {[%clk 0:01:30]} 23. Bxd4 {[%clk 0:01:44]}  Qg4 {[%clk 0:01:25]} 24. g3 {[%clk 0:01:44]}  cxd4 {[%clk 0:01:17]} 25. Re4 {[%clk 0:01:36]}  Qg6 {[%clk 0:00:48]} 26. Rf1 {[%clk 0:01:23]}  Bd8 {[%clk 0:00:37]} 27. Kh1 {[%clk 0:01:07]}  Nh3 {[%clk 0:00:36]} 28. Kg2 {[%clk 0:01:04]}  Nxf2 {[%clk 0:00:16]} 29. Rxf2 {[%clk 0:01:02]}  Bg5 {[%clk 0:00:14]} 30. Qd1 {[%clk 0:00:55]}  Be3 {[%clk 0:00:12]} 31. Rf1 {[%clk 0:00:55]}  h5 {[%clk 0:00:05]} 32. Qe2 {[%clk 0:00:54]}  Qh6 {[%clk 0:00:05]} 33. h4 {[%clk 0:00:48]}  Qg6 {[%clk 0:00:04]} 34. Rxe3 {[%clk 0:00:35]}  dxe3 {[%clk 0:00:03]} 35. Qxe3 {[%clk 0:00:36]}  Ra8 {[%clk 0:00:03]} 36. Rf2 {[%clk 0:00:34]}  Ra3 {[%clk 0:00:03]} 37. Ne4 {[%clk 0:00:34]}  Rb3 {[%clk 0:00:03]} 38. Qxb6 {[%clk 0:00:33]}  Rxd3 {[%clk 0:00:02]} 39. Qd8+ {[%clk 0:00:33]}  Rf8 {[%clk 0:00:02]} 40. Qxf8+ {[%clk 0:00:32]}  Kxf8 {[%clk 0:00:03]} 41. Nxe5+ {[%clk 0:00:32]}  Qf6 {[%clk 0:00:01]} 42. Nxf6 {[%clk 0:00:32]} 1-0


[Site "https://www.chess.com"]